fUSD/lending_fUSD_20251212
["ID","MTS","AMOUNT","RATE_DAILY","PERIOD"]
[398339109,1765538062578,-3082.74,0.00040273,30]
[398339110,1765538062587,-406.33668985,0.00040273,30]
[398339111,1765538062595,-1765.66,0.00040273,30]
[398339112,1765538062604,-992.27,0.00040273,30]
[398339113,1765538062613,-669.73,0.00040273,30]
[398339114,1765538062622,-810.69,0.00040273,30]
[398339115,1765538062631,-1342.66,0.00040273,30]
[398339116,1765538062641,-648.8,0.00040273,30]
[398339117,1765538062650,-682.03,0.00040273,30]
[398339118,1765538062659,-1864.3,0.00040273,30]
[398339119,1765538062668,-500.0,0.00040273,30]
[398339120,1765538062678,-689.18,0.00040273,30]
[398339121,1765538062687,-598.31,0.00040273,30]
[398339122,1765538062696,-792.27,0.00040273,30]
[398339123,1765538062706,-2535.84,0.00040273,30]
[398339124,1765538062715,-500.0,0.00040273,30]
[398339125,1765538062724,-500.0,0.00040273,30]
[398339126,1765538062733,-449.82014277,0.00040273,30]
[398339127,1765538062742,-1454.84,0.00040273,30]
[398339128,1765538062751,-500.0,0.00040273,30]
[398339129,1765538062759,-836.48,0.00040273,30]
[398339130,1765538062768,-405.30249968,0.00040273,30]
[398339131,1765538062777,-630.54,0.00040273,30]
[398339132,1765538062786,-542.7,0.00040273,30]
[398339133,1765538062795,-500.0,0.00040273,30]
[398339134,1765538062805,-625.15,0.00040273,30]
[398339135,1765538062814,-2978.69,0.00040273,30]
[398339136,1765538062823,-500.0,0.00040273,30]
[398339137,1765538062832,-566.99,0.00040273,30]
[398339138,1765538062841,-501.3,0.00040273,30]
[398339139,1765538062851,-1577.35,0.00040273,30]
[398339140,1765538062861,-500.0,0.00040273,30]
[398339141,1765538062874,-716.61,0.00040273,30]
[398339142,1765538062883,-2248.13,0.00040273,30]
[398339143,1765538062892,-556.61,0.00040273,30]
[398339144,1765538062901,-500.0,0.00040273,30]
[398339145,1765538062911,-504.5578311,0.00040273,30]
[398339146,1765538062920,-459.55233991,0.00040273,30]
[398339147,1765538062929,-1673.77,0.00040273,30]
[398339148,1765538062939,-2331.84,0.00040273,30]
[398339149,1765538062948,-1028.79,0.00040273,30]
[398339150,1765538062958,-2147.02,0.00040273,30]
[398339151,1765538062967,-1527.47,0.00040273,30]
[398339152,1765538062976,-500.0,0.00040273,30]
[398339153,1765538062985,-500.28,0.00040273,30]
[398339154,1765538062995,-1715.19,0.00040273,30]
[398339155,1765538063004,-594.01,0.00040273,30]
[398339156,1765538063014,-1740.0,0.00040273,30]
[398339157,1765538063023,-567.29,0.00040273,30]
[398339158,1765538063032,-500.0,0.00040273,30]
[398339159,1765538063042,-633.47,0.00040273,30]
[398339160,1765538063052,-2330.09,0.00040273,30]
[398339161,1765538063061,-519.44864546,0.00040273,30]
[398339162,1765538063070,-527.63,0.00040273,30]
[398339163,1765538063079,-500.0,0.00040273,30]
[398339164,1765538063089,-563.14,0.00040273,30]
[398339165,1765538063099,-1444.41,0.00040273,30]
[398339166,1765538063108,-588.23,0.00040273,30]
[398339167,1765538063117,-500.0,0.00040273,30]
[398339168,1765538063127,-500.0,0.00040273,30]
[398339169,1765538063136,-1747.95,0.00040273,30]
[398339170,1765538063146,-763.9,0.00040273,30]
[398339171,1765538063155,-500.0,0.00040273,30]
[398339172,1765538063165,-818.9,0.00040273,30]
[398339173,1765538063174,-972.17,0.00040273,30]
[398339174,1765538063183,-573.6,0.00040273,30]
[398339175,1765538063193,-556.13,0.00040273,30]
[398339176,1765538063202,-500.0,0.00040273,30]
[398339177,1765538063211,-666.96,0.00040273,30]
[398339178,1765538063221,-500.0,0.00040273,30]
[398339179,1765538063230,-1283.05,0.00040273,30]
[398339180,1765538063244,-798.2,0.00040273,30]
[398339181,1765538063254,-6586.39,0.00040273,30]
[398339182,1765538063263,-989.92,0.00040273,30]
[398339183,1765538063273,-500.0,0.00040273,30]
[398339184,1765538063282,-500.0,0.00040273,30]
[398339185,1765538063291,-502.68,0.00040273,30]
[398339186,1765538063301,-500.0,0.00040273,30]
[398339187,1765538063311,-500.0,0.00040273,30]
[398339188,1765538063320,-500.0,0.00040273,30]
[398339189,1765538063330,-500.0,0.00040273,30]
[398339190,1765538063339,-709.01,0.00040273,30]
[398339191,1765538063349,-500.0,0.00040273,30]
[398339192,1765538063359,-500.0,0.00040273,30]
[398339193,1765538063369,-1180.74,0.00040273,30]
[398339194,1765538063379,-589.52,0.00040273,30]
[398339195,1765538063388,-529.51,0.00040273,30]
[398339196,1765538063398,-500.0,0.00040273,30]
[398339197,1765538063407,-500.0,0.00040273,30]
[398339198,1765538063417,-500.0,0.00040273,30]
[398339199,1765538063426,-500.0,0.00040273,30]
[398339200,1765538063435,-500.0,0.00040273,30]
[398339201,1765538063444,-720.32,0.00040273,30]
[398339202,1765538063454,-509.99,0.00040273,30]
[398339203,1765538063463,-500.0,0.00040273,30]
[398339204,1765538063472,-752.38,0.00040273,30]
[398339205,1765538063482,-500.0,0.00040273,30]
[398339206,1765538063491,-899.81,0.00040273,30]
[398339207,1765538063500,-500.0,0.00040273,30]
[398339208,1765538063510,-500.0,0.00040273,30]
[398339209,1765538063519,-634.12,0.00040273,30]
[398339210,1765538063529,-1738.8,0.00040273,30]
[398339211,1765538063539,-500.0,0.00040273,30]
[398339212,1765538063548,-622.13,0.00040273,30]
[398339213,1765538063557,-500.0,0.00040273,30]
[398339214,1765538063567,-10008.33,0.00040273,30]
[398339215,1765538063577,-1816.12,0.00040273,30]
[398339216,1765538063586,-500.0,0.00040273,30]
[398339217,1765538063595,-1222.19,0.00040273,30]
[398339218,1765538063604,-500.0,0.00040273,30]
[398339219,1765538063613,-506.67,0.00040273,30]
[398339220,1765538063622,-500.0,0.00040273,30]
[398339221,1765538063631,-614.15,0.00040273,30]
[398339222,1765538063640,-853.5,0.00040273,30]
[398339223,1765538063649,-867.61,0.00040273,30]
[398339224,1765538063659,-642.79,0.00040273,30]
[398339225,1765538063668,-500.0,0.00040273,30]
[398339226,1765538063677,-1730.62,0.00040273,30]
[398339227,1765538063686,-500.0,0.00040273,30]
[398339228,1765538063696,-500.0,0.00040273,30]
[398339229,1765538063705,-500.0,0.00040273,30]
[398339230,1765538063714,-5043.62,0.00040273,30]
[398339231,1765538063723,-2044.69,0.00040273,30]
[398339232,1765538063733,-500.0,0.00040273,30]
[398339233,1765538063742,-500.0,0.00040273,30]
[398339234,1765538063751,-1215.55,0.00040273,30]
[398339235,1765538063761,-500.0,0.00040273,30]
[398339236,1765538063770,-500.0,0.00040273,30]
[398339237,1765538063780,-500.0,0.00040273,30]
[398339238,1765538063789,-500.0,0.00040273,30]
[398339239,1765538063799,-1545.49,0.00040273,30]
[398339240,1765538063808,-660.88,0.00040273,30]
[398339241,1765538063818,-1589.48,0.00040273,30]
[398339242,1765538063827,-628.02,0.00040273,30]
[398339243,1765538063837,-626.53,0.00040273,30]
[398339244,1765538063847,-602.06,0.00040273,30]
[398339245,1765538063857,-500.0,0.00040273,30]
[398339246,1765538063871,-840.42,0.00040273,30]
[398339247,1765538063882,-500.0,0.00040273,30]
[398339248,1765538063892,-699.47,0.00040273,30]
[398339249,1765538063902,-905.19,0.00040273,30]
[398339250,1765538063912,-752.57,0.00040273,30]
[398339251,1765538063922,-2585.93,0.00040273,30]
[398339252,1765538063931,-789.34,0.00040273,30]
[398339253,1765538063940,-3440.78,0.00040273,30]
[398339254,1765538063951,-563.79,0.00040273,30]
[398339255,1765538063961,-500.0,0.00040273,30]
[398339256,1765538063971,-500.0,0.00040273,30]
[398339257,1765538063980,-571.37,0.00040273,30]
[398339258,1765538063990,-500.54,0.00040273,30]
[398339259,1765538063999,-500.0,0.00040273,30]
[398339260,1765538064009,-500.0,0.00040273,30]
[398339261,1765538064018,-509.62,0.00040273,30]
[398339262,1765538064028,-669.04,0.00040273,30]
[398339263,1765538064037,-3771.23,0.00040273,30]
[398339264,1765538064047,-813.18,0.00040273,30]
[398339265,1765538064057,-500.0,0.00040273,30]
[398339266,1765538064066,-500.0,0.00040273,30]
[398339267,1765538064076,-1179.73,0.00040273,30]
[398339268,1765538064086,-500.0,0.00040273,30]
[398339269,1765538064096,-500.0,0.00040273,30]
[398339270,1765538064106,-1235.8,0.00040273,30]
[398339271,1765538064116,-1360.54,0.00040273,30]
[398339272,1765538064125,-604.12,0.00040273,30]
[398339273,1765538064135,-500.0,0.00040273,30]
[398339274,1765538064145,-500.0,0.00040273,30]
[398339275,1765538064155,-1586.65,0.00040273,30]
[398339276,1765538064164,-500.0,0.00040273,2]
[398339277,1765538064174,-500.0,0.00040273,30]
[398339278,1765538064184,-500.0,0.00040273,30]
[398339279,1765538064194,-972.77,0.00040273,30]
[398339280,1765538064203,-500.0,0.00040273,30]
[398339281,1765538064213,-500.0,0.00040273,30]
[398339282,1765538064223,-500.0,0.00040273,30]
[398339283,1765538064232,-500.0,0.00040273,30]
[398339284,1765538064242,-500.0,0.00040273,30]
[398339285,1765538064251,-4363.05,0.00040273,30]
[398339286,1765538064260,-731.82,0.00040273,30]
[398339287,1765538064270,-1418.58,0.00040273,30]
[398339288,1765538064280,-1625.02,0.00040273,30]
[398339289,1765538064289,-500.0,0.00040273,30]
[398339290,1765538064299,-500.0,0.00040273,30]
[398339291,1765538064308,-500.0,0.00040273,30]
[398339292,1765538064318,-500.0,0.00040273,30]
[398339293,1765538064328,-500.0,0.00040273,30]
[398339294,1765538064337,-500.0,0.00040273,30]
[398339295,1765538064346,-805.19,0.00040273,30]
[398339296,1765538064356,-1679.93,0.00040273,30]
[398339297,1765538064366,-500.0,0.00040273,30]
[398339298,1765538064375,-500.0,0.00040273,30]
[398339299,1765538064385,-11739.26,0.00040273,30]
[398339300,1765538064395,-510.13,0.00040273,30]
[398339301,1765538064404,-500.0,0.00040273,30]
[398339302,1765538064413,-500.0,0.00040273,30]
[398339303,1765538064423,-325.73204067,0.00040273,30]
[398339304,1765538064432,-1704.19,0.00040273,30]
[398339305,1765538064442,-878.65,0.00040273,30]
[398339306,1765538064452,-500.0,0.00040273,30]
[398339307,1765538064462,-619.07,0.00040273,30]
[398339308,1765538064471,-2892.66,0.00040273,30]
[398339309,1765538064481,-500.0,0.00040273,30]
[398339310,1765538064490,-500.0,0.00040273,30]
[398339311,1765538064499,-500.0,0.00040273,30]
[398339312,1765538064509,-1899.29,0.00040273,30]
[398339313,1765538064518,-500.0,0.00040273,30]
[398339314,1765538064527,-1019.28,0.00040273,30]
[398339315,1765538064537,-500.0,0.00040273,30]
[398339316,1765538064546,-500.0,0.00040273,30]
[398339317,1765538064556,-1418.57,0.00040273,30]
[398339318,1765538064565,-500.0,0.00040273,30]
[398339319,1765538064574,-500.0,0.00040273,30]
[398339320,1765538064584,-500.0,0.00040273,30]
[398339321,1765538064593,-211.01286181,0.00040273,30]
[398339322,1765538064602,-736.31,0.00040273,30]
[398339323,1765538064611,-500.0,0.00040273,30]
[398339324,1765538064620,-500.0,0.00040273,30]
[398339325,1765538064629,-803.38,0.00040273,30]
[398339326,1765538064639,-500.0,0.00040273,30]
[398339327,1765538064648,-522.15,0.00040273,30]
[398339328,1765538064657,-500.0,0.00040273,30]
[398339329,1765538064667,-500.0,0.00040273,30]
[398339330,1765538064676,-500.0,0.00040273,30]
[398339331,1765538064686,-500.0,0.00040273,30]
[398339332,1765538064695,-1055.47,0.00040273,30]
[398339333,1765538064704,-694.39,0.00040273,30]
[398339334,1765538064713,-1480.3,0.00040273,30]
[398339335,1765538064722,-1529.14,0.00040273,30]
[398339336,1765538064732,-1887.69,0.00040273,30]
[398339337,1765538064741,-289.39402065,0.00040273,30]
[398339338,1765538064750,-500.0,0.00040273,30]
[398339339,1765538064759,-1537.38,0.00040273,30]
[398339340,1765538064768,-814.49,0.00040273,30]
[398339341,1765538064777,-500.0,0.00040273,30]
[398339342,1765538064787,-500.0,0.00040273,30]
[398339343,1765538064796,-878.0,0.00040273,30]
[398339344,1765538064805,-542.52,0.00040273,30]
[398339345,1765538064814,-500.0,0.00040273,30]
[398339346,1765538064824,-179.96973966,0.00040273,30]
[398339347,1765538064833,-500.0,0.00040273,30]
[398339348,1765538064842,-1609.53,0.00040273,30]
[398339349,1765538064852,-500.0,0.00040273,30]
[398339350,1765538064862,-1220.84,0.00040273,30]
[398339351,1765538064876,-435.04988334,0.00040273,30]
[398339352,1765538064885,-1987.44,0.00040273,30]
[398339353,1765538064895,-500.0,0.00040273,30]
[398339354,1765538064905,-1330.17,0.00040273,30]
[398339355,1765538064915,-994.63,0.00040273,30]
[398339356,1765538064929,-1382.15,0.00040273,30]
[398339357,1765538064938,-500.0,0.00040273,30]
[398339358,1765538064948,-500.0,0.00040273,30]
[398339359,1765538064958,-1159.62,0.00040273,30]
[398339360,1765538064967,-500.0,0.00040273,30]
[398339361,1765538064977,-329.17759075,0.00040273,30]
[398339362,1765538064986,-1136.89,0.00040273,30]
[398339363,1765538064996,-556.58,0.00040273,30]
[398339364,1765538065005,-9826.53,0.00040273,30]
[398339365,1765538065016,-500.0,0.00040273,30]
[398339366,1765538065026,-500.0,0.00040273,30]
[398339367,1765538065035,-972.17,0.00040273,30]
[398339368,1765538065045,-500.0,0.00040273,30]
[398339369,1765538065055,-731.37,0.00040273,30]
[398339370,1765538065065,-1614.96,0.00040273,30]
[398339371,1765538065075,-500.0,0.00040273,30]
[398339372,1765538065085,-4738.09,0.00040273,30]
[398339373,1765538065095,-1327.17,0.00040273,30]
[398339374,1765538065105,-500.0,0.00040273,30]
[398339375,1765538065115,-3631.76,0.00040273,30]
[398339376,1765538065125,-500.0,0.00040273,30]
[398339377,1765538065135,-500.0,0.00040273,30]
[398339378,1765538065145,-500.0,0.00040273,30]
[398339379,1765538065155,-963.98,0.00040273,30]
[398339380,1765538065165,-491.58489323,0.00040273,30]
[398339381,1765538065175,-634.95,0.00040273,30]
[398339382,1765538065185,-3329.8,0.00040273,30]
[398339383,1765538065195,-500.0,0.00040273,30]
[398339384,1765538065205,-500.0,0.00040273,30]
[398339385,1765538065215,-1124.07,0.00040273,30]
[398339386,1765538065224,-500.0,0.00040273,30]
[398339387,1765538065235,-876.92,0.00040273,30]
[398339388,1765538065244,-500.0,0.00040273,30]
[398339389,1765538065254,-500.0,0.00040273,30]
[398339390,1765538065264,-500.0,0.00040273,30]
[398339391,1765538065274,-500.0,0.00040273,30]
[398339392,1765538065284,-500.0,0.00040273,30]
[398339393,1765538065294,-500.0,0.00040273,30]
[398339394,1765538065304,-500.0,0.00040273,30]
[398339395,1765538065313,-500.0,0.00040273,30]
[398339396,1765538065323,-500.0,0.00040273,30]
[398339397,1765538065333,-613.85,0.00040273,30]
[398339398,1765538065342,-513.60942041,0.00040273,30]
[398339399,1765538065352,-705.22,0.00040273,30]
[398339400,1765538065361,-500.0,0.00040273,30]
[398339401,1765538065371,-601.44,0.00040273,30]
[398339402,1765538065380,-680.86,0.00040273,30]
[398339403,1765538065389,-500.0,0.00040273,30]
[398339404,1765538065398,-500.0,0.00040273,30]
[398339405,1765538065408,-1255.36,0.00040273,30]
[398339406,1765538065417,-500.0,0.00040273,30]
[398339407,1765538065427,-500.0,0.00040273,30]
[398339408,1765538065437,-757.92,0.00040273,30]
[398339409,1765538065447,-500.0,0.00040273,30]
[398339410,1765538065457,-976.99,0.00040273,30]
[398339411,1765538065466,-681.9,0.00040273,30]
[398339412,1765538065476,-500.0,0.00040273,30]
[398339413,1765538065485,-540.32256238,0.00040273,30]
[398339414,1765538065495,-766.68,0.00040273,30]
[398339415,1765538065504,-500.0,0.00040273,30]
[398339416,1765538065513,-500.0,0.00040273,30]
[398339417,1765538065523,-500.0,0.00040273,30]
[398339418,1765538065532,-500.0,0.00040273,30]
[398339419,1765538065541,-516.379655,0.00040273,30]
[398339420,1765538065550,-500.0,0.00040273,30]
[398339421,1765538065559,-500.0,0.00040273,30]
[398339422,1765538065569,-820.89,0.00040273,30]
[398339423,1765538065829,-518.59697431,0.00040273,30]
[398339424,1765538065841,-1425.77,0.00040273,30]
[398339425,1765538065851,-2237.4,0.00040273,30]
[398339426,1765538065861,-200.0,0.00040273,30]
[398339427,1765538065875,-673.29,0.00040273,30]
[398339428,1765538065885,-574.67,0.00040273,30]
[398339429,1765538065895,-500.0,0.00040273,30]
[398339430,1765538065906,-500.0,0.00040273,30]
[398339431,1765538065915,-1020.61,0.00040273,30]
[398339432,1765538065925,-500.0,0.00040273,30]
[398339433,1765538065935,-749.57,0.00040273,30]
[398339434,1765538065947,-500.0,0.00040273,30]
[398339435,1765538065957,-558.5,0.00040273,30]
[398339436,1765538065967,-500.0,0.00040273,30]
[398339437,1765538065976,-500.0,0.00040273,30]
[398339438,1765538065986,-1224.23,0.00040273,30]
[398339439,1765538065996,-628.4,0.00040273,30]
[398339440,1765538066005,-500.0,0.00040273,30]
[398339441,1765538066015,-500.0,0.00040273,30]
[398339442,1765538066025,-1487.24,0.00040273,30]
[398339443,1765538066035,-500.0,0.00040273,30]
[398339444,1765538066045,-500.0,0.00040273,30]
[398339445,1765538066055,-500.0,0.00040273,30]
[398339446,1765538066065,-500.0,0.00040273,30]
[398339447,1765538066075,-643.83,0.00040273,30]
[398339448,1765538066084,-500.0,0.00040273,30]
[398339449,1765538066095,-1267.76,0.00040273,30]
[398339450,1765538066105,-500.0,0.00040273,30]
[398339451,1765538066114,-554.79,0.00040273,30]
[398339452,1765538066125,-500.0,0.00040273,30]
[398339453,1765538066135,-500.13,0.00040273,30]
[398339454,1765538066144,-500.0,0.00040273,30]
[398339455,1765538066154,-543.72,0.00040273,30]
[398339456,1765538066164,-1502.85,0.00040273,30]
[398339457,1765538066174,-901.37,0.00040273,30]
[398339458,1765538066184,-865.46,0.00040273,30]
[398339459,1765538066194,-1483.56,0.00040273,30]
[398339460,1765538066204,-500.0,0.00040273,30]
[398339461,1765538066214,-239.50820806,0.00040273,30]
[398339462,1765538066223,-500.0,0.00040273,30]
[398339463,1765538066233,-500.0,0.00040273,30]
[398339464,1765538066243,-500.0,0.00040273,30]
[398339465,1765538066253,-619.65,0.00040273,30]
[398339466,1765538066262,-2056.86,0.00040273,30]
[398339467,1765538066272,-500.0,0.00040273,30]
[398339468,1765538066283,-500.0,0.00040273,30]
[398339469,1765538066293,-598.84,0.00040273,30]
[398339470,1765538066303,-500.0,0.00040273,30]
[398339471,1765538066313,-577.5368552,0.00040273,30]
[398339472,1765538066323,-500.0,0.00040273,30]
[398339473,1765538066333,-500.0,0.00040273,30]
[398339474,1765538066345,-500.0,0.00040273,30]
[398339475,1765538066355,-500.0,0.00040273,30]
[398339476,1765538066365,-500.0,0.00040273,30]
[398339477,1765538066376,-500.0,0.00040273,30]
[398339478,1765538066386,-500.0,0.00040273,30]
[398339479,1765538066396,-500.0,0.00040273,30]
[398339480,1765538066406,-2287.8,0.00040273,30]
[398339481,1765538066415,-178.07493471,0.00040273,30]
[398339482,1765538066425,-500.0,0.00040273,30]
[398339483,1765538066435,-500.0,0.00040273,30]
[398339484,1765538066444,-500.0,0.00040273,30]
[398339485,1765538066454,-555.94,0.00040273,30]
[398339486,1765538066463,-500.0,0.00040273,30]
[398339487,1765538066473,-500.0,0.00040273,30]
[398339488,1765538066484,-500.0,0.00040273,30]
[398339489,1765538066493,-500.0,0.00040273,30]
[398339490,1765538066503,-312.05581028,0.00040273,30]
[398339491,1765538066512,-868.9,0.00040273,30]
[398339492,1765538066527,-500.0,0.00040273,30]
[398339493,1765538066538,-671.73,0.00040273,30]
[398339494,1765538066548,-500.0,0.00040273,30]
[398339495,1765538066558,-2439.55,0.00040273,30]
[398339496,1765538066568,-2828.46,0.00040273,120]
[398339497,1765538066578,-447.99,0.00040273,30]
[398339498,1765538066588,-3289.05,0.00040273,30]
[398339499,1765538066599,-5959.38536385,0.00040273,30]
[398339500,1765538066608,-500.0,0.00040273,7]
[398339501,1765538066619,-1876.03,0.00040273,30]
[398339502,1765538066629,-283.49,0.00040273,30]
[398339503,1765538066639,-283.49,0.00040273,30]
[398339504,1765538066650,-205.12,0.00040273,30]
[398339505,1765538066660,-283.49,0.00040273,30]
[398339506,1765538066670,-160.860252,0.00040273,30]
[398339507,1765538066681,-500.0,0.00040273,30]
[398339508,1765538066691,-500.0,0.00040273,30]
[398339509,1765538066701,-500.0,0.00040273,2]
[398339510,1765538066711,-932.972515,0.00040273,30]
[398339511,1765538066721,-168.15043,0.00040273,30]
[398339512,1765538066731,-1953.93417,0.00040273,30]
[398339513,1765538066742,-1767.482813,0.00040273,30]
[398339514,1765538066751,-171.577909,0.00040273,30]
[398339515,1765538066761,-1310.696547,0.00040273,30]
[398339516,1765538066773,-1000.0,0.00040273,120]
[398339517,1765538066782,-500.0,0.00040273,10]
[398339518,1765538066792,-1014.43,0.00040273,30]
[398339519,1765538066802,-500.0,0.00040273,30]
[398339520,1765538066813,-523.12259429,0.00040273,30]
[398339521,1765538066823,-300.0,0.00040273,2]
[398339522,1765538066832,-1000.0,0.00040273,30]
[398339523,1765538066842,-352.09,0.00040273,2]
[398339524,1765538066852,-645.54,0.00040273,30]
[398339525,1765538066864,-500.0,0.00040273,30]
[398339526,1765538066876,-523.99,0.00040273,120]
[398339527,1765538066886,-500.0,0.00040273,2]
[398339528,1765538066896,-1994.45,0.00040273,30]
[398339529,1765538066906,-2057.12,0.00040273,30]
[398339530,1765538066916,-300.0,0.00040273,2]
[398339531,1765538066926,-500.0,0.00040273,2]
[398339532,1765538066936,-600.0,0.00040274,30]
[398339533,1765538066946,-155.54,0.00040284,120]
[398339534,1765538066956,-155.54,0.00040384,120]
[398339535,1765538066966,-6138.0,0.00040388,2]
[398339536,1765538066976,-3070.29,0.000404,30]
[398339537,1765538066986,-2000.0,0.00040404,120]
[398339538,1765538066997,-151.0,0.00040457,7]
[398339539,1765538067006,-155.54,0.00040484,120]
[398339540,1765538067015,-289.0,0.000405,30]
[398339541,1765538067026,-218.2059966,0.000405,120]
[398339542,1765538067035,-2960.52,0.000405,14]
[398339543,1765538067045,-245.31,0.000405,14]
[398339544,1765538067054,-21224.34,0.000405,14]
[398339545,1765538067064,-6138.0,0.00040525,2]
[398339546,1765538067074,-3935.8,0.00040537,120]
[398339547,1765538067084,-1330.0,0.00040546,30]
[398339548,1765538067093,-500.0,0.00040547,30]
[398339549,1765538067103,-500.0,0.00040547,30]
[398339550,1765538067113,-500.0,0.00040547,30]
[398339551,1765538067123,-500.0,0.00040547,30]
[398339552,1765538067133,-1824.08,0.00040547,30]
[398339553,1765538067142,-351.80117862,0.00040547,30]
[398339554,1765538067152,-500.0,0.00040547,30]
[398339555,1765538067161,-651.26,0.00040547,30]
[398339556,1765538067171,-507.18621784,0.00040547,30]
[398339557,1765538067180,-500.0,0.00040547,30]
[398339558,1765538067190,-500.0,0.00040547,30]
[398339559,1765538067199,-500.0,0.00040547,30]
[398339560,1765538067209,-500.0,0.00040547,30]
[398339561,1765538067219,-500.0,0.00040547,30]
[398339562,1765538067229,-768.58,0.00040547,30]
[398339563,1765538067239,-500.0,0.00040547,30]
[398339564,1765538067248,-604.69,0.00040547,30]
[398339565,1765538067257,-500.0,0.00040547,30]
[398339566,1765538067267,-1703.32,0.00040547,30]
[398339567,1765538067276,-601.55,0.00040547,7]
[398339568,1765538067286,-662.42,0.00040547,30]
[398339569,1765538067296,-693.68,0.00040547,30]
[398339570,1765538067306,-500.0,0.00040547,30]
[398339571,1765538067316,-514.26294347,0.00040547,30]
[398339572,1765538067326,-500.0,0.00040547,30]
[398339573,1765538067335,-500.0,0.00040547,30]
[398339574,1765538067345,-500.0,0.00040547,30]
[398339575,1765538067355,-1436.54,0.00040547,30]
[398339576,1765538067365,-500.0,0.00040547,30]
[398339577,1765538067374,-500.0,0.00040547,30]
[398339578,1765538067383,-500.0,0.00040547,30]
[398339579,1765538067393,-500.0,0.00040547,30]
[398339580,1765538067403,-500.0,0.00040547,30]
[398339581,1765538067413,-500.0,0.00040547,30]
[398339582,1765538067423,-500.0,0.00040547,30]
[398339583,1765538067433,-500.0,0.00040547,30]
[398339584,1765538067443,-500.0,0.00040547,30]
[398339585,1765538067453,-500.0,0.00040547,30]
[398339586,1765538067463,-698.57,0.00040547,30]
[398339587,1765538067472,-789.19,0.00040547,30]
[398339588,1765538067482,-500.0,0.00040547,30]
[398339589,1765538067491,-500.0,0.00040547,30]
[398339590,1765538067501,-627.23,0.00040547,30]
[398339591,1765538067510,-500.0,0.00040547,30]
[398339592,1765538067520,-772.34,0.00040547,30]
[398339593,1765538067529,-500.0,0.00040547,30]
[398339594,1765538067538,-500.0,0.00040547,30]
[398339595,1765538067548,-500.0,0.00040547,30]
[398339596,1765538067558,-741.68,0.00040547,30]
[398339597,1765538067568,-178.12011878,0.00040547,30]
[398339598,1765538067577,-545.86,0.00040547,30]
[398339599,1765538067587,-625.45,0.00040547,30]
[398339600,1765538067597,-646.79,0.00040547,30]
[398339601,1765538067607,-646.65,0.00040547,30]
[398339602,1765538067616,-500.0,0.00040547,30]
[398339603,1765538067626,-500.0,0.00040547,30]
[398339604,1765538067635,-794.95,0.00040547,30]
[398339605,1765538067645,-500.0,0.00040547,30]
[398339606,1765538067655,-687.17,0.00040547,30]
[398339607,1765538067664,-500.0,0.00040547,30]
[398339608,1765538067674,-500.0,0.00040547,30]